bitfinex-derivatives/quotes_SOLF0:USTF0_20250712
["timestamp","ask_amount","ask_price","bid_price","bid_amount"]
[1752306561917,9.6091,162.82,162.78,6.1401]
[1752306562116,9.6091,162.82,162.79,3.59]
[1752306562822,3.47,162.81,162.8,3.59]
[1752306563323,9.6093,162.81,162.8,3.59]
[1752306563927,6.1389,162.83,162.8,3.59]
[1752306564127,3.47,162.82,162.81,3.59]
[1752306565636,9.6092,162.82,162.81,3.59]
[1752306567933,3.47,162.82,162.81,3.59]
[1752306568834,9.6089,162.82,162.81,3.59]
[1752306571135,3.47,162.82,162.81,9.7293]
[1752306571339,3.47,162.83,162.82,3.59]
[1752306571541,7.9144093,162.83,162.82,3.59]
[1752306571836,3.47,162.83,162.82,3.59]
[1752306572235,7.9144093,162.83,162.82,3.59]
[1752306572436,14.0519093,162.86,162.82,3.59]
[1752306572641,7.9144093,162.85,162.82,3.59]
[1752306572837,3.47,162.83,162.82,3.59]
[1752306573038,3.47,162.82,162.74,3.59]
[1752306573232,3.47,162.82,162.76,3.59]
[1752306574541,3.47,162.85,162.76,3.59]
[1752306574742,7.9144093,162.85,162.76,3.59]
[1752306574942,3.47,162.85,162.76,3.59]
[1752306575247,7.9144093,162.85,162.76,3.59]
[1752306575544,9.608,162.85,162.76,3.59]
[1752306575752,14.0524093,162.85,162.76,3.59]
[1752306576043,9.608,162.85,162.76,3.59]
[1752306576242,9.6082,162.84,162.82,3.59]
[1752306577442,14.0530093,162.83,162.82,3.59]
[1752306577642,9.6086,162.83,162.82,3.59]
[1752306577843,3.47,162.83,162.82,3.59]
[1752306582551,3.47,162.83,162.82,9.7289]
[1752306582842,181.83,162.87,162.83,3.59]
[1752306583043,7.9554273,162.86,162.84,6.138]
[1752306583245,4.48559704,162.86,162.85,3.59]
[1752306584845,181.83,162.87,162.85,9.7278]
[1752306585151,181.83,162.87,162.86,3.44]
[1752306585351,186.31467674,162.87,162.86,3.44]
[1752306585550,186.31467674,162.87,162.86,9.5774]
[1752306585551,4.48467674,162.87,162.86,9.5774]
[1752306585749,3.41,162.89,162.86,9.5774]
[1752306585750,4.48467674,162.88,162.86,3.44]
[1752306587248,4.48467674,162.89,162.88,3.44]
[1752306587448,4.48467674,162.9,162.88,3.44]
[1752306587645,4.48467674,162.89,162.88,3.44]
[1752306588150,4.48467674,162.9,162.88,3.44]
[1752306588351,178.16,162.91,162.88,3.44]
[1752306588744,178.16,162.91,162.89,6.1361]
[1752306588945,178.16,162.91,162.9,3.44]
[1752306589249,178.16,162.91,162.9,9.5759]
[1752306591447,117.08147088,162.94,162.92,3.44]
[1752306592253,178.12,162.95,162.93,3.44]
[1752306592655,178.12,162.95,162.93,9.5745]
[1752306593053,178.12,162.95,162.94,3.44]
[1752306596863,0.04280952,162.96,162.94,3.44]
[1752306597160,0.04280952,162.96,162.91,0.04471243]
[1752306597161,3.41,162.95,162.91,0.04471243]
[1752306597460,3.41,162.95,162.92,3.44]
[1752306597662,9.5445,162.94,162.93,3.44]
[1752306598250,3.41,162.94,162.93,3.44]
[1752306598457,9.5442,162.95,162.93,3.44]
[1752306599556,0.04280952,162.96,162.93,3.44]
[1752306600159,0.04280952,162.96,162.95,3.44]
[1752306600661,3.45280952,162.96,162.95,3.44]
[1752306600855,3.41,162.95,162.91,0.04471243]
[1752306601062,3.41,162.95,162.92,3.44]
[1752306601256,3.41,162.93,162.91,0.04471243]
[1752306601460,3.41,162.94,162.92,3.44]
[1752306601859,9.5451,162.93,162.92,3.44]
[1752306604164,3.41,162.93,162.92,3.44]
[1752306604463,6.1345,162.94,162.92,3.44]
[1752306604662,9.5445,162.94,162.92,3.44]
[1752306605063,9.5445,162.94,162.93,3.44]
[1752306606060,6.1348,162.93,162.91,0.04471243]
[1752306606359,3.41,162.92,162.87,3.44]
[1752306606562,3.41,162.9,162.85,3.44]
[1752306607462,0.04060032,162.89,162.85,3.44]
[1752306608261,0.04060032,162.89,162.88,3.44]
[1752306608560,3.45060032,162.89,162.78,530.42]
[1752306608765,3.41,162.87,162.84,3.44]
[1752306608962,3.41,162.88,162.79,3.44]
[1752306609163,0.04700409,162.87,162.79,3.44]
[1752306609364,9.59430409,162.87,162.84,3.44]
[1752306610669,3.41,162.86,162.85,3.44]
[1752306610863,9.5474,162.86,162.85,3.44]
[1752306611769,3.41,162.85,162.84,3.44]
[1752306611967,9.5478,162.85,162.84,3.44]
[1752306612163,9.5478,162.85,162.78,536.34594564]
[1752306612164,3.41,162.84,162.83,3.44]
[1752306616570,6.1382,162.84,162.81,6.1392]
[1752306616770,3.4,162.83,162.82,3.58]
[1752306617367,9.5386,162.83,162.82,3.58]
[1752306618270,3.4,162.83,162.82,3.58]
[1752306620171,9.5817899,162.84,162.82,3.58]
[1752306620775,9.5817899,162.84,162.81,6.1392]
[1752306621076,9.5817899,162.84,162.83,3.58]
[1752306621673,3.4434899,162.84,162.83,3.58]
[1752306625472,9.5816899,162.84,162.83,3.58]
[1752306625677,3.4434899,162.84,162.82,3.58]
[1752306625872,3.4,162.83,162.82,3.58]
[1752306627369,6.1386,162.83,162.8,3.58]
[1752306627573,0.0434899,162.84,162.8,3.58]
[1752306627780,3.4434899,162.84,162.82,6.1387]
[1752306628276,3.4434899,162.84,162.83,3.58]
[1752306629579,9.5816899,162.84,162.83,3.58]
[1752306629973,3.4,162.83,162.8,3.58]
[1752306630278,28.81873962,162.9,162.8,3.58]
[1752306630473,3.4,162.85,162.8,3.58]
[1752306630676,0.0430662,162.83,162.8,3.58]
[1752306630979,3.4,162.84,162.81,6.139]
[1752306631179,3.4,162.84,162.82,3.58]
[1752306631383,0.04546826,162.83,162.82,3.58]
[1752306631678,0.04546826,162.83,162.82,9.7189]
[1752306633179,0.04546826,162.83,162.82,3.58]
[1752306633478,3.44546826,162.83,162.82,3.58]
[1752306634277,0.04546826,162.83,162.82,3.58]
[1752306636379,0.04546826,162.83,162.82,9.7189]
[1752306641581,3.44546826,162.83,162.77,5.92594564]
[1752306641978,3.44546826,162.83,162.78,3.58]
[1752306642189,3.44546826,162.83,162.82,3.58]
[1752306642883,3.44546826,162.83,162.82,9.7189]
[1752306643384,0.04546826,162.83,162.82,9.7189]
[1752306644779,3.62546826,162.83,162.82,3.58]
[1752306647184,3.62546826,162.83,162.82,9.7189]
[1752306647888,0.04546826,162.83,162.82,9.7189]
[1752306651686,6.1362,162.9,162.87,6.1371]
[1752306651891,8.07458673,162.89,162.88,3.49]
[1752306652086,4.49458673,162.89,162.88,3.49]
[1752306652486,4.49458673,162.89,162.88,9.6267]
[1752306652788,8.07458673,162.9,162.89,3.49]
[1752306653788,8.07595002,162.9,162.89,3.49]
[1752306656590,4.49595002,162.9,162.89,6.1363]
[1752306656889,3.58,162.92,162.89,3.49]
[1752306657789,3.58,162.92,162.9,6.1357]
[1752306658094,3.58,162.93,162.91,3.49]
[1752306659090,3.58,162.93,162.91,6.1353]
[1752306659292,3.58,162.93,162.92,3.49]
[1752306660289,9.7148,162.93,162.92,3.49]
[1752306660690,3.58,162.93,162.92,3.49]
[1752306660894,3.58,162.93,162.92,9.6252]
[1752306663791,3.58,162.93,162.92,3.49]
[1752306666403,9.7148,162.93,162.92,3.49]
[1752306666601,3.58,162.92,162.91,3.53193165]
[1752306667696,9.7152,162.92,162.91,3.53193165]
[1752306668001,9.7152,162.92,162.91,0.04193165]
[1752306668696,9.7152,162.92,162.91,3.53193165]
[1752306669098,3.58,162.92,162.91,3.53193165]
[1752306670502,9.7152,162.92,162.91,0.04193165]
[1752306674399,3.58,162.89,162.78,9.41706739]
[1752306674603,3.58,162.88,162.79,3.49]
[1752306675303,3.29,162.86,162.85,3.28]
[1752306676002,9.4274,162.86,162.85,3.28]
[1752306677905,6.1374,162.86,162.84,3.28]
[1752306678108,3.29,162.85,162.84,3.28]
[1752306679108,9.4278,162.85,162.84,3.28]
[1752306680306,3.29,162.83,162.82,3.28]
[1752306688517,9.4286,162.83,162.82,3.28]
[1752306688811,3.29,162.83,162.82,3.28]
[1752306694120,9.4286,162.83,162.82,3.28]
[1752306699022,3.29,162.83,162.82,3.28]
[1752306699718,3.29,162.83,162.82,9.4189]
[1752306700025,3.33563871,162.84,162.82,6.1389]
[1752306700317,3.33563871,162.84,162.83,3.28]
[1752306701523,0.04563871,162.84,162.83,9.4186]
[1752306701721,0.04563871,162.84,162.83,6.1386]
[1752306701919,0.04563871,162.84,162.83,9.4186]
[1752306706423,181.51,162.89,162.87,3.5]
[1752306706629,187.6465,162.89,162.87,3.5]
[1752306707820,181.51,162.89,162.87,6.137]
[1752306708025,181.51,162.89,162.88,3.5]
[1752306708829,178.02,162.89,162.88,9.6367]
[1752306710927,3.49,162.91,162.88,6.1367]
[1752306711126,3.49,162.92,162.91,3.5]
[1752306716836,3.49,162.92,162.91,9.6356]
[1752306717025,184.1146,162.94,162.91,9.6356]
[1752306717026,3.49,162.93,162.92,3.5]
[1752306717937,181.47,162.94,162.93,3.5]
[1752306719136,177.98,162.94,162.93,9.6348]
[1752306720438,177.98,162.94,162.93,3.5]
[1752306720639,181.47,162.94,162.93,3.5]
[1752306722133,177.98,162.94,162.93,3.5]
[1752306723235,181.47,162.94,162.93,3.5]
[1752306729135,181.47,162.94,162.92,6.135]
[1752306729341,181.47,162.94,162.93,3.5]
[1752306733141,187.6044,162.94,162.93,3.5]
[1752306734141,6.1349,162.93,162.91,3.5400284]
[1752306734439,3.49,162.92,162.91,3.5400284]
[1752306736144,3.49,162.92,162.91,9.6756284]
[1752306738145,187.3746,162.94,162.91,9.6756284]
[1752306738347,3.26,162.93,162.92,3.53]
[1752306738538,3.26,162.93,162.92,9.6652]
[1752306742952,181.24,162.94,162.93,9.6648]
[1752306743246,177.98,162.94,162.93,9.6648]
[1752306746054,0.04020741,162.95,162.94,6.1344]
[1752306746251,0.04020741,162.95,162.94,9.6644]
[1752306758866,181.0,162.99,162.94,3.53]
[1752306759268,3.26,162.99,162.97,6.133]
[1752306759466,3.26,162.99,162.98,3.53]
[1752306759673,7.73303136,162.99,162.98,3.53]
[1752306759974,3.26,162.99,162.98,9.6629]
[1752306760167,4.47303136,162.99,162.98,9.6629]
[1752306760375,3.26,163.01,162.98,9.6629]
[1752306760376,7.73190832,163.01,162.98,3.53]
[1752306761271,3.26,163.01,162.98,3.53]
[1752306761471,7.73190832,163.01,162.98,3.53]
[1752306761673,3.26,163.01,162.98,3.53]
[1752306761968,4.47190832,163.01,163.0,3.53]
[1752306762178,177.7,163.03,163.0,3.53]
[1752306762365,177.7,163.03,162.99,5.92706739]
[1752306762366,3.26,163.03,163.02,3.53]
[1752306764175,3.26,163.03,163.02,9.6614]
[1752306767374,3.26,163.03,163.02,3.53]
[1752306767873,3.26,163.03,163.02,9.6614]
[1752306768469,6.1305,163.05,163.02,9.6614]
[1752306768668,3.4,163.07,163.04,3.42]
[1752306768872,3.4,163.07,163.02,5.92706739]
[1752306769077,3.4,163.07,163.05,3.42]
[1752306769279,9.5298,163.07,163.05,3.42]
[1752306769580,6.1298,163.07,163.05,3.42]
[1752306769780,3.4,163.06,163.04,9.5506]
[1752306772480,4.46060426,163.1,163.03,0.03911617]
[1752306772481,6.1303,163.05,163.03,0.03911617]
[1752306772676,3.4,163.04,163.03,0.03911617]
[1752306773470,3.4,163.04,163.03,3.45911617]
[1752306774674,3.4,163.04,163.03,9.59011617]
[1752306774875,3.4,163.09,163.04,3.42]
[1752306775279,3.4,163.06,163.05,3.42]
[1752306778084,9.5299,163.06,163.05,3.42]
[1752306778277,3.4,163.06,163.05,3.42]
[1752306778678,3.4,163.06,163.04,3.45920336]
[1752306779279,3.4,163.06,163.05,3.42]
[1752306779482,3.4,163.06,163.04,0.03920336]
[1752306779673,180.94,163.06,163.04,0.03920336]
[1752306779877,6.1308,163.04,163.02,3.42]
[1752306780082,3.4,163.03,163.02,3.42]
[1752306780279,3.4,163.03,163.01,3.42]
[1752306780483,6.1311,163.03,163.01,3.42]
[1752306780780,3.4,163.02,163.01,3.42]
[1752306781583,3.4,163.02,163.01,9.5517]
[1752306781981,3.4,163.05,163.02,3.42]
[1752306782180,3.4,163.07,163.02,3.42]
[1752306782475,3.4,163.06,163.02,3.42]
[1752306782678,3.4,163.05,163.02,3.42]
[1752306782883,3.4,163.05,163.04,3.42]
[1752306783485,3.4,163.05,163.04,9.5506]
[1752306783683,177.52,163.09,163.04,3.42]
[1752306783881,3.4,163.08,163.04,3.42]
[1752306784081,3.4,163.07,163.06,3.42]
[1752306788780,187.0489,163.09,163.06,3.42]
[1752306789088,3.4,163.08,163.06,3.42]
[1752306789486,9.5292,163.08,163.06,3.42]
[1752306790584,3.4,163.08,163.06,3.42]
[1752306792092,3.4,163.08,163.07,6.1295]
[1752306792393,3.4,163.08,163.07,9.5495]
[1752306792691,180.92,163.09,163.08,3.42]
[1752306793590,6.84328708,163.16,163.08,3.42]
[1752306793591,3.4,163.15,163.08,3.42]
[1752306793792,3.4,163.13,163.08,3.42]
[1752306793992,7.85396884,163.13,163.08,3.42]
[1752306794192,3.4,163.12,163.08,3.42]
[1752306794394,3.4,163.12,163.09,0.04653426]
[1752306794593,3.4,163.12,163.1,3.42]
[1752306794793,3.4,163.12,163.09,0.04653426]
[1752306794993,3.4,163.12,163.09,3.55653426]
[1752306795293,3.4,163.12,163.09,0.04653426]
[1752306795499,3.4,163.12,163.11,3.51]
[1752306796697,3.4,163.12,163.11,9.638]
[1752306800603,3.4,163.12,163.11,3.51]
[1752306802405,3.4,163.12,163.11,9.638]
[1752306802703,3.4,163.12,163.11,3.51]
[1752306805506,3.4,163.12,163.11,9.638]
[1752306806412,6.1266,163.15,163.12,6.1276]
[1752306806603,180.91,163.14,163.13,3.51]
[1752306806804,185.36943452,163.14,163.13,3.51]
[1752306807206,180.91,163.14,163.13,3.51]
[1752306807409,185.36965664,163.14,163.13,3.51]
[1752306807705,181.83965664,163.14,163.13,9.6373]
[1752306807910,3.53,163.17,163.13,3.51]
[1752306808111,180.89,163.18,163.13,3.51]
[1752306808512,180.89,163.18,163.17,3.51]
[1752306808716,185.34956502,163.18,163.17,3.51]
[1752306809113,185.34956502,163.18,163.14,0.043653]
[1752306809114,191.47496502,163.18,163.15,6.1264]
[1752306809307,3.53,163.17,163.16,3.51]
[1752306811111,9.6558,163.17,163.16,3.51]
[1752306814812,3.53,163.17,163.14,0.043653]
[1752306815016,7.98580298,163.17,163.14,0.043653]
[1752306815213,3.53,163.16,163.14,0.043653]
[1752306815712,3.53,163.16,163.11,3.51]
[1752306816417,3.53,163.12,163.11,3.51]
[1752306818021,9.6577,163.12,163.11,3.51]
[1752306819118,3.53,163.12,163.11,3.51]
[1752306821520,177.34014808,163.13,163.12,3.51]
[1752306821922,180.87014808,163.13,163.12,3.51]
[1752306822913,177.34014808,163.13,163.12,9.6377]
[1752306824409,0.04014808,163.13,163.12,9.6377]
[1752306831024,3.42,163.17,163.12,3.57]
[1752306831628,9.5458,163.17,163.15,3.57]
[1752306832919,6.1258,163.17,163.14,6.16772898]
[1752306833125,3.42,163.16,163.14,6.16772898]
[1752306833718,3.42,163.16,163.15,3.57]
[1752306834329,3.42,163.17,163.16,3.57]
[1752306835918,7.86284029,163.18,163.17,3.57]
[1752306836121,3.42,163.18,163.17,3.57]
[1752306836723,10.56794029,163.19,163.17,3.57]
[1752306836724,13.98794029,163.19,163.17,3.57]
[1752306837329,3.42,163.18,163.17,3.57]
[1752306838925,4.44284029,163.19,163.18,3.57]
[1752306839133,180.68,163.2,163.18,3.57]
[1752306839325,3.42,163.19,163.14,5.96809637]
[1752306839728,3.42,163.19,163.17,6.1255]
[1752306839930,3.42,163.19,163.15,3.57]
[1752306841935,3.42,163.19,163.17,6.1256]
[1752306842231,3.42,163.19,163.18,3.57]
[1752306842431,3.42,163.19,163.17,3.57]
[1752306842635,3.42,163.19,163.15,3.57]
[1752306843631,3.42,163.18,163.16,6.1261]
[1752306843832,3.42,163.18,163.17,3.57]
[1752306845132,3.42,163.18,163.17,9.6958]
[1752306845325,186.805,163.2,163.18,3.57]
[1752306845529,3.42,163.19,163.14,0.04102898]
[1752306845733,3.42,163.19,163.18,6.1254]
[1752306846235,3.42,163.19,163.18,9.6954]
[1752306846733,3.42,163.19,163.18,3.57]
[1752306846934,3.42,163.19,163.15,3.57]
[1752306847133,3.42,163.19,163.18,6.1252]
[1752306847330,3.42,163.19,163.18,9.6952]
[1752306847838,180.68,163.2,163.19,3.57]
[1752306848439,186.8046,163.2,163.19,3.57]
[1752306853241,180.68,163.2,163.19,3.57]
[1752306855646,180.68,163.2,163.19,9.695]
[1752306855943,180.68,163.2,163.19,3.57]
[1752306857344,3.47,163.24,163.19,3.57]
[1752306857555,3.47,163.22,163.19,3.57]
[1752306857745,177.12,163.21,163.2,6.1246]
[1752306857951,177.12,163.21,163.2,9.5646]
[1752306864155,3.47,163.22,163.21,9.5643]
[1752306866156,3.47,163.22,163.21,3.44]
[1752306867957,3.47,163.22,163.21,9.5643]
[1752306868766,9.5939,163.22,163.21,3.44]
[1752306868968,3.47,163.22,163.19,3.44]
[1752306869169,3.47,163.21,163.19,3.44]
[1752306869369,3.47,163.2,163.19,9.5648]
[1752306871064,6.1236,163.23,163.2,6.1245]
[1752306871266,3.47,163.22,163.21,3.44]
[1752306872372,3.47,163.22,163.21,9.5643]
[1752306872568,4.43581001,163.23,163.21,9.5643]
[1752306872779,7.90581001,163.23,163.19,3.44]
[1752306873072,7.90581001,163.23,163.21,6.1239]
[1752306873273,4.43581001,163.22,163.21,9.5639]
[1752306873880,180.57,163.24,163.22,6.1236]
[1752306874176,180.57,163.24,163.23,3.44]
[1752306874364,181.53886693,163.24,163.23,9.5635]
[1752306874771,177.1,163.24,163.23,9.5635]
[1752306875171,181.5405584,163.24,163.23,9.5635]
[1752306875772,185.0105584,163.24,163.23,9.5635]
[1752306876367,185.01051325,163.24,163.23,9.5635]
[1752306876774,185.01051325,163.24,163.23,3.44]
[1752306878075,185.01051325,163.24,163.23,9.5635]
[1752306879278,185.01051325,163.24,163.23,3.44]
[1752306880072,6.1235,163.23,163.22,0.04121102]
[1752306880378,7.91110753,163.23,163.22,0.04121102]
[1752306881178,7.91110753,163.23,163.22,3.48121102]
[1752306881476,3.47,163.23,163.22,3.48121102]
[1752306887083,9.5935,163.23,163.22,0.04121102]
[1752306887383,3.47,163.23,163.22,0.04121102]
[1752306887682,3.47,163.23,163.19,3.36]
[1752306888486,6.1241,163.22,163.19,9.4849]
[1752306888679,3.27,163.21,163.19,9.4849]
[1752306892288,3.27,163.21,163.19,6.1249]
[1752306892489,3.27,163.21,163.2,3.36]
[1752306894484,6.1236,163.23,163.2,9.4845]
[1752306894685,176.98,163.22,163.21,3.36]
[1752306895084,176.98,163.22,163.21,9.4843]
[1752306896491,180.25,163.22,163.21,9.4843]
[1752306897887,3.27,163.21,163.15,3.36]
[1752306898286,3.27,163.21,163.18,6.1252]
[1752306898488,0.04323704,163.2,163.18,6.1252]
[1752306898689,3.31323704,163.2,163.18,6.1252]
[1752306899193,3.31323704,163.2,163.19,3.36]
[1752306899394,0.04323704,163.2,163.19,9.485]
[1752306902094,176.98,163.22,163.15,5.92706739]
[1752306902095,6.1234,163.24,163.21,6.1241]
[1752306902295,9.3934,163.24,163.22,3.36]
[1752306902993,3.27,163.22,163.2,6.1245]
[1752306903599,3.27,163.22,163.21,3.36]
[1752306904592,3.27,163.22,163.21,9.4843]
[1752306904794,3.27,163.23,163.22,3.36]
[1752306905198,9.3932,163.24,163.22,3.36]
[1752306909199,9.3932,163.24,163.22,9.4839]
[1752306909501,3.27,163.24,163.23,3.36]
[1752306911395,13.84162705,163.24,163.23,3.36]
[1752306912306,7.71852705,163.24,163.23,3.36]
[1752306914007,13.84162705,163.24,163.23,3.36]
[1752306915003,9.6135,163.23,163.22,0.04481105]
[1752306915197,14.06202705,163.23,163.22,0.04481105]
[1752306922115,6.1247,163.2,163.11,10.32756524]
[1752306922316,3.49,163.19,163.13,3.38]
[1752306923512,3.5325102,163.18,163.13,3.38]
[1752306924111,3.5325102,163.18,163.16,3.38]
[1752306924906,3.5325102,163.18,163.17,3.38]
[1752306925106,0.0425102,163.18,163.17,3.38]
[1752306926115,0.0425102,163.18,163.17,9.5058]
[1752306927613,3.5325102,163.18,163.17,9.5058]
[1752306927816,7.98065941,163.18,163.17,3.38]
[1752306928713,0.0425102,163.18,163.17,3.38]
[1752306929115,3.5325102,163.18,163.17,3.38]
[1752306929315,3.5325102,163.18,163.11,3.38]
[1752306929819,3.5325102,163.18,163.17,3.38]
[1752306930018,7.98030638,163.18,163.17,3.38]
[1752306930219,3.5325102,163.18,163.17,3.38]
[1752306931617,7.97971982,163.18,163.17,3.38]
[1752306934922,14.10511982,163.18,163.17,3.38]
[1752306935124,9.6579102,163.18,163.17,3.38]
[1752306938021,14.10175142,163.18,163.17,3.38]
[1752306938325,9.6579102,163.18,163.17,3.38]
[1752306938824,14.10175142,163.18,163.17,3.38]
[1752306939025,9.6579102,163.18,163.17,3.38]
[1752306939221,6.1259,163.17,163.11,3.38]
[1752306939430,3.49,163.16,163.11,3.38]
[1752306940320,3.49,163.16,163.1,75.21780802]
[1752306940620,3.49,163.16,163.11,3.38]
[1752306941020,3.49,163.16,163.1,75.21780802]
[1752306941223,3.49,163.16,163.15,3.38]
[1752306942121,3.49,163.16,163.15,9.5065]
[1752306943020,3.49,163.17,163.16,3.38]
[1752306947425,3.41,163.17,163.11,3.59]
[1752306947621,7.85384122,163.17,163.11,3.59]
[1752306947829,3.41,163.16,163.11,3.59]
[1752306948131,3.41,163.15,163.14,3.59]
[1752306953833,3.41,163.15,163.11,6.1279]
[1752306954033,3.41,163.15,163.12,3.59]
[1752306954431,3.45253191,163.15,163.12,3.59]
[1752306954631,6.1271,163.14,163.12,3.59]
[1752306954832,3.41,163.13,163.12,3.59]
[1752306955228,9.5373,163.13,163.12,3.59]
[1752306955428,3.41,163.13,163.12,3.59]
[1752306960738,0.04253191,163.15,163.1,5.92706739]
[1752306961038,4.44384122,163.19,163.11,3.59]
[1752306961234,4.44384122,163.18,163.17,3.59]
[1752306961443,7.85384122,163.18,163.17,3.59]
[1752306962737,3.41,163.17,163.1,5.92706739]
[1752306962937,3.41,163.17,163.08,5.92706739]
[1752306963138,4.44384122,163.17,163.08,5.92706739]
[1752306963339,0.04075327,163.14,163.13,6.127]
[1752306963638,3.45075327,163.14,163.13,6.127]
[1752306964843,3.45075327,163.14,163.13,9.717]
[1752306965243,3.45075327,163.14,163.13,3.59]
[1752306965443,3.45075327,163.14,163.11,3.59]
[1752306965837,6.1273,163.13,163.11,3.59]
[1752306966039,3.41,163.12,163.11,3.59]
[1752306967244,3.41,163.12,163.11,9.718]
[1752306967442,3.41,163.12,163.11,3.59]
[1752306968343,3.41,163.12,163.11,9.718]
[1752306973037,3.41,163.13,163.12,6.1276]
[1752306973741,3.41,163.13,163.12,9.7176]
[1752306974845,3.55,163.12,163.05,3.39]
[1752306975235,3.55,163.11,163.05,3.39]
[1752306975442,0.04401665,163.1,163.05,3.39]
[1752306975641,3.59401665,163.1,163.05,3.39]
[1752306976041,3.59401665,163.1,163.09,3.39]
[1752306980649,3.59401665,163.1,163.08,6.1289]
[1752306980650,3.59401665,163.1,163.08,9.5189]
[1752306981242,9.72241665,163.1,163.07,6.1294]
[1752306981443,3.55,163.09,163.07,9.5194]
[1752306981838,3.55,163.09,163.07,3.39]
[1752306982046,3.55,163.09,163.02,3.39]
[1752306982556,3.55,163.09,163.01,5.92706739]
[1752306982557,3.55,163.09,163.08,3.39]
[1752306985351,3.55,163.09,163.08,9.5192]
[1752306987153,3.55,163.09,163.08,3.39]
[1752306988954,3.55,163.09,163.07,9.5194]
[1752306989952,3.55,163.09,163.07,3.39]
[1752306990258,3.55,163.08,163.06,9.5197]
[1752306992356,9.6792,163.08,163.06,3.39]
[1752306992561,3.55,163.07,163.06,3.39]
[1752306992949,6.1298,163.07,162.99,3.39]
[1752306993147,0.04231309,163.09,162.99,3.39]
[1752306993148,3.55,163.08,162.99,3.39]
[1752306993655,3.59607114,163.05,163.04,6.1304]
[1752306993857,3.59607114,163.05,163.04,9.5204]
[1752306994658,0.04607114,163.05,163.04,9.5204]
[1752306995566,3.55,163.08,163.07,9.5195]
[1752306996761,6.1284,163.1,163.07,9.5195]
[1752306996963,3.55,163.09,163.08,9.5191]
[1752306998362,3.55,163.11,163.08,3.39]
[1752306999167,3.55,163.11,163.1,6.1283]
[1752306999467,3.55,163.11,163.1,9.5183]
[1752307000765,3.55,163.12,163.11,9.518]
[1752307003270,3.55,163.13,163.12,6.1275]
[1752307003469,3.55,163.13,163.12,9.5175]
[1752307007166,4.44763799,163.17,163.12,3.39]
[1752307007366,3.41,163.15,163.12,3.39]
[1752307007767,4.44763799,163.18,163.12,3.43011437]
[1752307007967,3.41,163.18,163.13,3.49]
[1752307008172,3.41,163.17,163.13,3.49]
[1752307009079,3.41,163.17,163.16,6.1259]
[1752307009275,3.41,163.17,163.16,9.6159]
[1752307010178,3.41,163.18,163.17,9.6157]
[1752307010374,3.41,163.2,163.18,3.49]
[1752307010580,3.41,163.2,163.19,3.49]